Workbook

Sheet Reverse budget tool
B2: Reverse budget tool - Performance requirements of the business based on future financial needs
B3: Existing business performance | E3: Future funding requirements and financial needs
B4: Long term average business performance | F4: Funding requirement | G4: Amount | H4: How many years from now is this funding required | I4: Annual provisioning
B5: Gross profit | C5: 1420000 | E5: Personal | F5: Family expenses | G5: 20000 | H5: 1 | I5: =IF(OR(G5="",G5=0),0,G5/H5) -> 20000
B6: Operating costs | C6: 850000 | F6: Education | G6: 300000 | H6: 4 | I6: 75000
B7: EBIT/Operating profit | C7: =C5-C6 -> 570000 | F7: Succession | G7: 800000 | H7: 20 | I7: 40000
B8: Imputed owner wages in mgt accounts | C8: 150000 | F8: Retirement | G8: 1000000 | H8: 20 | I8: 50000
B9: Actual owner wages or drawings | C9: 100000 | E9: Business | F9: Debt principal | G9: =C11 -> 2000000 | H9: 10 | I9: 200000
B10: Existing and future finance and tax rates | F10: Capital expediture/replacement | G10: 30000 | H10: 1 | I10: 30000
B11: Liabilities | C11: 2000000 | F11: Business provisions | G11: 100000 | H11: 5 | I11: 20000
B12: Interest rate | C12: =C13/C11 -> 0.04375 | F12: Add back owner wage | G12: =C8-C9 -> 50000 | I12: =-G12 -> -50000
B13: Interest | C13: 87500 | F13: Annual funds required* | I13: =SUM(I5:I12) -> 385000
B14: Tax rate | C14: 0.3
B15: Net profit % gross profit | C15: =(C5-C6)/C5 -> 0.4014084507 | F15: * Assumes no investment return on annual provisioning
B17: Existing performance against future needs
B18: Is the business generating adequate earnings to meet the future funding needs? | C18: =IF(C19<0,"No","Yes") -> No
B19: =IF(C19<0,"What is the extent of the shortfall after meeting the funding needs?","What is the extent of the surplus after meeting the funding needs?") -> What is the extent of the shortfall after meeting the funding needs? | C19: =((C7-C13)*(1-C14))-I13 -> -47250
B20: =IF(C20="","","Additional gross profit to achieve funding needs") -> Additional gross profit to achieve funding needs | C20: =IF(C19>0,"",((I13/(1-C14)+C13)/C15)-C5) -> 168157.8947
B21: =IF(C21="","","Additional operating costs to achieve funding needs") -> Additional operating costs to achieve funding needs | C21: =IF(C19>0,"",((I13/(1-C14)+C13)/C15)-((I13/(1-C14)+C13))-C6) -> 100657.8947
B22: =IF(C22="","","Additional EBIT to achieve funding needs") -> Additional EBIT to achieve funding needs | C22: =IF(C19>0,"",C23-C7) -> 67500
B23: =IF(C23="","","Revised EBIT required to achieve funding needs") -> Revised EBIT required to achieve funding needs | C23: =IF(C19<0,(C5+C20)-(C6+C21),"") -> 637500
B25: Disclaimer: This decision support tool is produced by Agrista. The contents do not constitute management or business advice and should not be relied on as such. Before taking any action in relation to a matter described in this decision support tool, you should seek independent advice from a qualified professional. Agrista accepts no responsibility for any loss or damage resulting from reliance on the contents of this tool.
